[Event "*** Titled Tuesday Blitz"]
[Site "Chess.com"]
[Date "2020.12.01"]
[Round "3"]
[White "Mbneu"]
[Black "catzapto"]
[Result "1-0"]
[WhiteElo "2323"]
[BlackElo "2122"]
[TimeControl "180+1"]
[EndTime "10:29:05 PST"]
[Termination "Mbneu won on time"]

1. d4 {[%clk 0:03:00.9]} 1... Nf6 {[%clk 0:02:59.9]} 2. c4 {[%clk 0:03:00.2]}
2... e6 {[%clk 0:02:59.8]} 3. Nc3 {[%clk 0:02:59.7]} 3... c6 {[%clk 0:03:00]} 4.
e4 {[%clk 0:02:50.2]} 4... Bb4 {[%clk 0:02:57.4]} 5. e5 {[%clk 0:02:49.9]} 5...
Ne4 {[%clk 0:02:56.5]} 6. Bd2 {[%clk 0:02:37.4]} 6... Nxd2 {[%clk 0:02:55.8]} 7.
Qxd2 {[%clk 0:02:37.1]} 7... d5 {[%clk 0:02:51.2]} 8. Nf3 {[%clk 0:02:33.2]}
8... O-O {[%clk 0:02:50.6]} 9. a3 {[%clk 0:02:29.4]} 9... Be7 {[%clk 0:02:50]}
10. h4 {[%clk 0:02:18]} 10... h6 {[%clk 0:02:44]} 11. Bd3 {[%clk 0:02:13.1]}
11... dxc4 {[%clk 0:02:43.9]} 12. Bxc4 {[%clk 0:02:12.8]} 12... b5 {[%clk
0:02:44.3]} 13. Bd3 {[%clk 0:02:10.5]} 13... Bb7 {[%clk 0:02:44.7]} 14. Ne4
{[%clk 0:02:09.8]} 14... a6 {[%clk 0:02:43.7]} 15. Rd1 {[%clk 0:01:59.8]} 15...
Nd7 {[%clk 0:02:41.2]} 16. Qf4 {[%clk 0:01:58.4]} 16... c5 {[%clk 0:02:38.5]}
17. g4 {[%clk 0:01:51.2]} 17... cxd4 {[%clk 0:02:26.4]} 18. g5 {[%clk
0:01:50.5]} 18... h5 {[%clk 0:01:54.1]} 19. Nf6+ {[%clk 0:01:48.4]} 19... Bxf6
{[%clk 0:01:47.5]} 20. gxf6 {[%clk 0:01:46.3]} 20... Nxf6 {[%clk 0:01:37.7]} 21.
exf6 {[%clk 0:01:41]} 21... Qxf6 {[%clk 0:01:38.6]} 22. Qxf6 {[%clk 0:01:29.8]}
22... gxf6 {[%clk 0:01:39.5]} 23. Ke2 {[%clk 0:01:24.3]} 23... e5 {[%clk
0:01:37]} 24. Rhg1+ {[%clk 0:01:23.5]} 24... Kh8 {[%clk 0:01:37.5]} 25. Nd2
{[%clk 0:01:23.9]} 25... Rg8 {[%clk 0:01:34.8]} 26. Be4 {[%clk 0:01:22.4]} 26...
Rab8 {[%clk 0:01:17.8]} 27. Bxb7 {[%clk 0:01:17.5]} 27... Rxb7 {[%clk
0:01:18.7]} 28. Ne4 {[%clk 0:01:17.1]} 28... Rb6 {[%clk 0:01:18.9]} 29. Rxg8+
{[%clk 0:01:05.3]} 29... Kxg8 {[%clk 0:01:18.6]} 30. Ng3 {[%clk 0:01:05.9]}
30... Kg7 {[%clk 0:01:09.2]} 31. Nxh5+ {[%clk 0:01:03.5]} 31... Kg6 {[%clk
0:01:09.9]} 32. Ng3 {[%clk 0:01:02.8]} 32... f5 {[%clk 0:01:10.2]} 33. Rc1
{[%clk 0:00:49.8]} 33... f4 {[%clk 0:01:09.7]} 34. Ne4 {[%clk 0:00:43.1]} 34...
f5 {[%clk 0:01:10]} 35. Nc5 {[%clk 0:00:42.6]} 35... e4 {[%clk 0:01:07.5]} 36.
f3 {[%clk 0:00:42.8]} 36... Rc6 {[%clk 0:01:00.3]} 37. fxe4 {[%clk 0:00:37.7]}
37... fxe4 {[%clk 0:00:59]} 38. Rg1+ {[%clk 0:00:37.6]} 38... Kh5 {[%clk
0:00:38]} 39. Nxe4 {[%clk 0:00:35.3]} 39... Rc2+ {[%clk 0:00:22.5]} 40. Kf3
{[%clk 0:00:34.7]} 40... Rxb2 {[%clk 0:00:22.9]} 41. Kxf4 {[%clk 0:00:30.7]}
41... d3 {[%clk 0:00:19.1]} 42. Nf6+ {[%clk 0:00:20.9]} 42... Kh6 {[%clk
0:00:17.4]} 43. Ng4+ {[%clk 0:00:19.1]} 43... Kh5 {[%clk 0:00:16.7]} 44. Rd1
{[%clk 0:00:18.3]} 44... d2 {[%clk 0:00:15.9]} 45. Ne3 {[%clk 0:00:16.1]} 45...
a5 {[%clk 0:00:13.9]} 46. Ng2 {[%clk 0:00:12.9]} 46... b4 {[%clk 0:00:13.5]} 47.
axb4 {[%clk 0:00:12.1]} 47... axb4 {[%clk 0:00:13.6]} 48. Ke3 {[%clk 0:00:12.7]}
48... b3 {[%clk 0:00:10.4]} 49. Rxd2 {[%clk 0:00:13]} 49... Rb1 {[%clk
0:00:10.2]} 50. Kd3 {[%clk 0:00:12.4]} 50... Rf1 {[%clk 0:00:07.5]} 51. Kc3
{[%clk 0:00:12]} 51... Rf3+ {[%clk 0:00:07.8]} 52. Kb2 {[%clk 0:00:12.1]} 52...
Kg4 {[%clk 0:00:06.5]} 53. Rd4+ {[%clk 0:00:11.6]} 53... Kg3 {[%clk 0:00:05.7]}
54. Ne1 {[%clk 0:00:10.7]} 54... Re3 {[%clk 0:00:03.4]} 55. Nd3 {[%clk
0:00:09.7]} 1-0

[Event "*** Titled Tuesday Blitz"]
[Site "Chess.com"]
[Date "2020.12.01"]
[Round "3"]
[White "LawrenceTrent"]
[Black "Kaua18"]
[Result "0-1"]
[WhiteElo "2514"]
[BlackElo "2334"]
[TimeControl "180+1"]
[EndTime "10:29:06 PST"]
[Termination "Kaua18 won by resignation"]

1. c4 {[%clk 0:02:53.8]} 1... c5 {[%clk 0:02:59.8]} 2. Nc3 {[%clk 0:02:51.6]}
2... Nc6 {[%clk 0:03:00.2]} 3. g3 {[%clk 0:02:51.6]} 3... g6 {[%clk 0:03:00.5]}
4. Bg2 {[%clk 0:02:51.4]} 4... Bg7 {[%clk 0:03:00.6]} 5. e3 {[%clk 0:02:50.7]}
5... e5 {[%clk 0:03:00.9]} 6. Nge2 {[%clk 0:02:49.7]} 6... Nge7 {[%clk
0:03:00.8]} 7. O-O {[%clk 0:02:50.3]} 7... O-O {[%clk 0:03:00.9]} 8. Rb1 {[%clk
0:02:50.4]} 8... d6 {[%clk 0:02:59.5]} 9. a3 {[%clk 0:02:50.9]} 9... a5 {[%clk
0:02:59.4]} 10. d3 {[%clk 0:02:49.7]} 10... Be6 {[%clk 0:02:58.6]} 11. f4 {[%clk
0:02:49.9]} 11... d5 {[%clk 0:02:55.9]} 12. cxd5 {[%clk 0:02:48]} 12... Nxd5
{[%clk 0:02:56.8]} 13. Nxd5 {[%clk 0:02:43.6]} 13... Bxd5 {[%clk 0:02:57.7]} 14.
Bxd5 {[%clk 0:02:42.7]} 14... Qxd5 {[%clk 0:02:58.6]} 15. e4 {[%clk 0:02:43.6]}
15... Qd6 {[%clk 0:02:55]} 16. Nc3 {[%clk 0:02:38.3]} 16... Rfd8 {[%clk
0:02:51]} 17. Nd5 {[%clk 0:02:34.1]} 17... Ne7 {[%clk 0:02:50]} 18. Nxe7+ {[%clk
0:02:34.2]} 18... Qxe7 {[%clk 0:02:50.9]} 19. f5 {[%clk 0:02:34.9]} 19... c4
{[%clk 0:02:41]} 20. Qg4 {[%clk 0:02:18.3]} 20... Qc5+ {[%clk 0:02:18.7]} 21.
Kg2 {[%clk 0:02:16.7]} 21... cxd3 {[%clk 0:02:18.4]} 22. Bg5 {[%clk 0:02:14.1]}
22... Rd4 {[%clk 0:01:57.4]} 23. Rbc1 {[%clk 0:01:50]} 23... Qb6 {[%clk
0:01:52.7]} 24. f6 {[%clk 0:01:41.5]} 24... Bf8 {[%clk 0:01:47.3]} 25. Be3
{[%clk 0:01:34.5]} 25... Qxb2+ {[%clk 0:01:45.6]} 26. Rf2 {[%clk 0:01:26.9]}
26... d2 {[%clk 0:01:43.4]} 27. Rd1 {[%clk 0:01:27.4]} 27... Rd3 {[%clk
0:00:58.8]} 28. Rdxd2 {[%clk 0:01:24.8]} 28... Rxd2 {[%clk 0:00:58.8]} 29. Bxd2
{[%clk 0:01:20.5]} 29... Qxa3 {[%clk 0:00:59.7]} 30. h4 {[%clk 0:01:17.8]} 30...
h5 {[%clk 0:00:54]} 31. Qe2 {[%clk 0:01:00.4]} 31... Rd8 {[%clk 0:00:49.8]} 32.
Be1 {[%clk 0:00:47.6]} 32... b6 {[%clk 0:00:49]} 33. g4 {[%clk 0:00:47.3]} 33...
Qd3 {[%clk 0:00:48.4]} 34. gxh5 {[%clk 0:00:40.1]} 34... Qxe2 {[%clk 0:00:46.5]}
35. Rxe2 {[%clk 0:00:41]} 35... gxh5 {[%clk 0:00:46.8]} 36. Rf2 {[%clk
0:00:39.9]} 36... Bh6 {[%clk 0:00:43.3]} 37. Rf5 {[%clk 0:00:39.4]} 37... Rd6
{[%clk 0:00:37.5]} 38. Bg3 {[%clk 0:00:36.3]} 38... Bf4 {[%clk 0:00:29.7]} 39.
Bxf4 {[%clk 0:00:33.5]} 39... exf4 {[%clk 0:00:30.6]} 40. e5 {[%clk 0:00:32.5]}
40... Rd3 {[%clk 0:00:19.8]} 41. Rg5+ {[%clk 0:00:31.6]} 41... Kf8 {[%clk
0:00:10.9]} 42. Rxh5 {[%clk 0:00:31.8]} 42... Rg3+ {[%clk 0:00:10.6]} 43. Kf2
{[%clk 0:00:31]} 43... a4 {[%clk 0:00:11]} 44. Rf5 {[%clk 0:00:24.8]} 44... Rg4
{[%clk 0:00:08.5]} 45. e6 {[%clk 0:00:11.2]} 45... fxe6 {[%clk 0:00:09.4]} 46.
Rb5 {[%clk 0:00:11.5]} 46... Kf7 {[%clk 0:00:09.2]} 47. Rxb6 {[%clk 0:00:11.6]}
47... Kxf6 {[%clk 0:00:09.6]} 48. Ra6 {[%clk 0:00:11.8]} 48... Rxh4 {[%clk
0:00:09.8]} 49. Rxa4 {[%clk 0:00:11.3]} 49... Kf5 {[%clk 0:00:09.9]} 50. Ra5+
{[%clk 0:00:11.3]} 50... e5 {[%clk 0:00:10.2]} 51. Ra8 {[%clk 0:00:12.2]} 51...
Rh3 {[%clk 0:00:09.4]} 52. Kg2 {[%clk 0:00:11.8]} 52... Re3 {[%clk 0:00:09.3]}
53. Kf2 {[%clk 0:00:12.7]} 53... Rb3 {[%clk 0:00:09.3]} 54. Rf8+ {[%clk
0:00:13.2]} 54... Ke4 {[%clk 0:00:09.5]} 55. Rh8 {[%clk 0:00:14.1]} 55... Rb2+
{[%clk 0:00:09.9]} 56. Ke1 {[%clk 0:00:15]} 56... Ke3 {[%clk 0:00:10.1]} 57. Rc8
{[%clk 0:00:13.2]} 57... Rb1+ {[%clk 0:00:09.5]} 0-1

[Event "*** Titled Tuesday Blitz"]
[Site "Chess.com"]
[Date "2020.12.01"]
[Round "3"]
[White "maheswaran26"]
[Black "WelshTiger"]
[Result "1-0"]
[WhiteElo "2180"]
[BlackElo "2455"]
[TimeControl "180+1"]
[EndTime "10:29:08 PST"]
[Termination "maheswaran26 won on time"]

1. d4 {[%clk 0:02:59.9]} 1... c5 {[%clk 0:02:58.3]} 2. d5 {[%clk 0:02:58.7]}
2... e6 {[%clk 0:02:58.1]} 3. Nc3 {[%clk 0:02:57.1]} 3... Nf6 {[%clk 0:02:53.3]}
4. Bg5 {[%clk 0:02:55.7]} 4... Qa5 {[%clk 0:02:49.3]} 5. Bxf6 {[%clk 0:02:48.9]}
5... gxf6 {[%clk 0:02:49.2]} 6. e4 {[%clk 0:02:49]} 6... Bh6 {[%clk 0:02:46]} 7.
Nf3 {[%clk 0:02:44.3]} 7... O-O {[%clk 0:02:44.3]} 8. a4 {[%clk 0:02:38.5]} 8...
Qb4 {[%clk 0:02:41.2]} 9. Rb1 {[%clk 0:02:17.1]} 9... d6 {[%clk 0:02:27.9]} 10.
Be2 {[%clk 0:02:13]} 10... exd5 {[%clk 0:02:21]} 11. Qxd5 {[%clk 0:02:05.8]}
11... Nc6 {[%clk 0:02:19.8]} 12. Qxd6 {[%clk 0:01:58]} 12... Be6 {[%clk
0:02:14.6]} 13. O-O {[%clk 0:01:55.2]} 13... Kh8 {[%clk 0:01:55.5]} 14. Qg3
{[%clk 0:01:30.8]} 14... Rg8 {[%clk 0:01:45.2]} 15. Qh4 {[%clk 0:01:30.6]} 15...
Rg6 {[%clk 0:01:45.6]} 16. Nd5 {[%clk 0:01:23.2]} 16... Qxa4 {[%clk 0:01:16.2]}
17. Nxf6 {[%clk 0:01:18.4]} 17... Nd4 {[%clk 0:01:04.9]} 18. Nxd4 {[%clk
0:01:12.2]} 18... Qxd4 {[%clk 0:01:05.8]} 19. Nh5 {[%clk 0:01:05.5]} 19... Bg5
{[%clk 0:00:58.6]} 20. Qg3 {[%clk 0:01:02.9]} 20... Rag8 {[%clk 0:00:44.4]} 21.
Qc3 {[%clk 0:01:00.5]} 21... Bf6 {[%clk 0:00:42.8]} 22. Nxf6 {[%clk 0:00:54.8]}
22... Rxf6 {[%clk 0:00:32.2]} 23. Qxd4 {[%clk 0:00:54.1]} 23... cxd4 {[%clk
0:00:33.1]} 24. f4 {[%clk 0:00:52.9]} 24... Bh3 {[%clk 0:00:31.2]} 25. Rf2
{[%clk 0:00:51.5]} 25... Bg4 {[%clk 0:00:30.1]} 26. Bd3 {[%clk 0:00:50.6]} 26...
Rb6 {[%clk 0:00:28.8]} 27. b3 {[%clk 0:00:49.5]} 27... Bd7 {[%clk 0:00:27.2]}
28. Ra1 {[%clk 0:00:49]} 28... a6 {[%clk 0:00:27]} 29. e5 {[%clk 0:00:47.8]}
29... Bc6 {[%clk 0:00:27.1]} 30. Kf1 {[%clk 0:00:43.3]} 30... Rc8 {[%clk
0:00:27.1]} 31. g3 {[%clk 0:00:42.3]} 31... Bd5 {[%clk 0:00:27]} 32. Ra5 {[%clk
0:00:40.2]} 32... Bc6 {[%clk 0:00:20.2]} 33. Ke1 {[%clk 0:00:38]} 33... Rd8
{[%clk 0:00:20.4]} 34. Kd2 {[%clk 0:00:37.3]} 34... Kg7 {[%clk 0:00:21]} 35. Rc5
{[%clk 0:00:36.5]} 35... Ra8 {[%clk 0:00:15.2]} 36. Ra5 {[%clk 0:00:35.2]} 36...
Rd8 {[%clk 0:00:14.9]} 37. f5 {[%clk 0:00:34.7]} 37... h6 {[%clk 0:00:15.4]} 38.
g4 {[%clk 0:00:34.5]} 38... Kf8 {[%clk 0:00:14.9]} 39. h4 {[%clk 0:00:34.6]}
39... Ke7 {[%clk 0:00:15.4]} 40. g5 {[%clk 0:00:34.5]} 40... hxg5 {[%clk
0:00:15.9]} 41. hxg5 {[%clk 0:00:34.8]} 41... Rg8 {[%clk 0:00:16.4]} 42. f6+
{[%clk 0:00:34.3]} 42... Kd7 {[%clk 0:00:15.3]} 43. g6 {[%clk 0:00:31.8]} 43...
fxg6 {[%clk 0:00:15.4]} 44. Bc4 {[%clk 0:00:31.6]} 44... Rf8 {[%clk 0:00:15.3]}
45. e6+ {[%clk 0:00:31.6]} 45... Kd6 {[%clk 0:00:15.2]} 46. e7 {[%clk
0:00:31.7]} 46... Rh8 {[%clk 0:00:08.2]} 47. Rg5 {[%clk 0:00:30.5]} 47... Be8
{[%clk 0:00:07.9]} 48. f7 {[%clk 0:00:29.9]} 48... Kxe7 {[%clk 0:00:08.3]} 49.
fxe8=Q+ {[%clk 0:00:28.1]} 49... Kxe8 {[%clk 0:00:07.2]} 50. Bf7+ {[%clk
0:00:26.6]} 50... Ke7 {[%clk 0:00:06.7]} 51. Rxg6 {[%clk 0:00:26.9]} 51... Rxg6
{[%clk 0:00:03.3]} 52. Bxg6 {[%clk 0:00:26.4]} 52... Kd6 {[%clk 0:00:04]} 53.
Bd3 {[%clk 0:00:26.3]} 53... Kc5 {[%clk 0:00:04.4]} 54. Kc1 {[%clk 0:00:24.7]}
54... Rh4 {[%clk 0:00:03.7]} 55. Kb2 {[%clk 0:00:24.3]} 55... b6 {[%clk
0:00:01.1]} 56. Rf5+ {[%clk 0:00:23.5]} 1-0

[Event "*** Titled Tuesday Blitz"]
[Site "Chess.com"]
[Date "2020.12.01"]
[Round "3"]
[White "Sam_ChessMood"]
[Black "nocnypako"]
[Result "1/2-1/2"]
[WhiteElo "2828"]
[BlackElo "2581"]
[TimeControl "180+1"]
[EndTime "10:29:11 PST"]
[Termination "Game drawn by repetition"]

1. d4 {[%clk 0:03:00.9]} 1... Nf6 {[%clk 0:02:59.6]} 2. c4 {[%clk 0:03:01.1]}
2... g6 {[%clk 0:02:59.9]} 3. Nc3 {[%clk 0:03:00.7]} 3... d5 {[%clk 0:03:00]} 4.
Nf3 {[%clk 0:03:00]} 4... Bg7 {[%clk 0:02:59.6]} 5. Qb3 {[%clk 0:02:59.8]} 5...
dxc4 {[%clk 0:02:58.1]} 6. Qxc4 {[%clk 0:03:00.7]} 6... O-O {[%clk 0:02:40.7]}
7. e4 {[%clk 0:03:00.7]} 7... a6 {[%clk 0:02:41.4]} 8. e5 {[%clk 0:02:54.7]}
8... b5 {[%clk 0:02:41.1]} 9. Qb3 {[%clk 0:02:54.5]} 9... Nfd7 {[%clk
0:02:40.8]} 10. e6 {[%clk 0:02:17]} 10... fxe6 {[%clk 0:02:41.7]} 11. Qxe6+
{[%clk 0:02:07.3]} 11... Kh8 {[%clk 0:01:49.4]} 12. Qd5 {[%clk 0:02:06.3]} 12...
Nb6 {[%clk 0:01:44.7]} 13. Qxd8 {[%clk 0:02:06.4]} 13... Rxd8 {[%clk 0:01:45.6]}
14. Bf4 {[%clk 0:02:00.5]} 14... Ra7 {[%clk 0:01:36.7]} 15. O-O-O {[%clk
0:01:51.4]} 15... Bg4 {[%clk 0:01:29.7]} 16. Ne5 {[%clk 0:01:36.9]} 16... Bxd1
{[%clk 0:01:15.9]} 17. Nf7+ {[%clk 0:01:36.7]} 17... Kg8 {[%clk 0:01:16.2]} 18.
Nxd8 {[%clk 0:01:37.6]} 18... Bg4 {[%clk 0:01:16.5]} 19. Bd3 {[%clk 0:01:25.9]}
19... Bxd4 {[%clk 0:01:14.6]} 20. Re1 {[%clk 0:01:20.3]} 20... Kf8 {[%clk
0:01:06.3]} 21. f3 {[%clk 0:01:16.6]} 21... Bd7 {[%clk 0:00:54.1]} 22. Bc2
{[%clk 0:00:49.8]} 22... b4 {[%clk 0:00:50.1]} 23. Nd1 {[%clk 0:00:21.8]} 23...
Nd5 {[%clk 0:00:48.6]} 24. Bh6+ {[%clk 0:00:21]} 24... Ke8 {[%clk 0:00:47.7]}
25. Ne6 {[%clk 0:00:21.4]} 25... Bxe6 {[%clk 0:00:43.7]} 26. Rxe6 {[%clk
0:00:22.3]} 26... Kf7 {[%clk 0:00:43.7]} 27. Re4 {[%clk 0:00:22.5]} 27... Bf6
{[%clk 0:00:29.4]} 28. Ne3 {[%clk 0:00:22.3]} 28... e6 {[%clk 0:00:25.3]} 29.
Nxd5 {[%clk 0:00:11.6]} 29... exd5 {[%clk 0:00:26.2]} 30. Rxb4 {[%clk
0:00:11.7]} 30... Nc6 {[%clk 0:00:26.8]} 31. Rf4 {[%clk 0:00:10]} 31... Ke7
{[%clk 0:00:22]} 32. Bf8+ {[%clk 0:00:09.8]} 32... Ke6 {[%clk 0:00:19.3]} 33.
Bh6 {[%clk 0:00:08.5]} 33... Ne5 {[%clk 0:00:19]} 34. Ra4 {[%clk 0:00:07.7]}
34... c5 {[%clk 0:00:18.6]} 35. Bf4 {[%clk 0:00:05.7]} 35... c4 {[%clk 0:00:18]}
36. b3 {[%clk 0:00:05.8]} 36... c3 {[%clk 0:00:14.3]} 37. Bxe5 {[%clk
0:00:06.2]} 37... Bxe5 {[%clk 0:00:15.2]} 38. f4 {[%clk 0:00:06.4]} 38... Bf6
{[%clk 0:00:14.4]} 39. Bd3 {[%clk 0:00:06.2]} 39... a5 {[%clk 0:00:13]} 40. b4
{[%clk 0:00:04.9]} 40... Bd8 {[%clk 0:00:13]} 41. Kc2 {[%clk 0:00:03.6]} 41...
Bb6 {[%clk 0:00:12.7]} 42. b5 {[%clk 0:00:04]} 42... d4 {[%clk 0:00:11.9]} 43.
Rc4 {[%clk 0:00:04.3]} 43... Rc7 {[%clk 0:00:11.4]} 44. Rxc7 {[%clk 0:00:04.2]}
44... Bxc7 {[%clk 0:00:12.3]} 45. g3 {[%clk 0:00:04.3]} 45... Kd5 {[%clk
0:00:11.5]} 46. h4 {[%clk 0:00:04.6]} 46... Kc5 {[%clk 0:00:10.6]} 47. Kb3
{[%clk 0:00:05.1]} 47... Bd6 {[%clk 0:00:07.4]} 48. a4 {[%clk 0:00:05.3]} 48...
Be7 {[%clk 0:00:07]} 49. f5 {[%clk 0:00:04.1]} 49... gxf5 {[%clk 0:00:06.8]} 50.
Bxf5 {[%clk 0:00:05]} 50... h6 {[%clk 0:00:07.2]} 51. Bd3 {[%clk 0:00:04.3]}
51... Bd6 {[%clk 0:00:07]} 52. g4 {[%clk 0:00:04]} 52... Be7 {[%clk 0:00:07.1]}
53. h5 {[%clk 0:00:04.5]} 53... Bg5 {[%clk 0:00:06.7]} 54. Be4 {[%clk
0:00:04.6]} 54... Bd8 {[%clk 0:00:06.3]} 55. Bd3 {[%clk 0:00:04.9]} 55... Bg5
{[%clk 0:00:06.2]} 56. Bf5 {[%clk 0:00:05]} 56... Bd8 {[%clk 0:00:06.1]} 57. Bd3
{[%clk 0:00:05.3]} 57... Bg5 {[%clk 0:00:06.1]} 1/2-1/2

[Event "*** Titled Tuesday Blitz"]
[Site "Chess.com"]
[Date "2020.12.01"]
[Round "3"]
[White "TudorAnton"]
[Black "Beca95"]
[Result "1-0"]
[WhiteElo "2473"]
[BlackElo "2888"]
[TimeControl "180+1"]
[EndTime "10:29:11 PST"]
[Termination "TudorAnton won on time"]

1. d4 {[%clk 0:03:00.9]} 1... g6 {[%clk 0:02:57.7]} 2. e4 {[%clk 0:02:59.5]}
2... Bg7 {[%clk 0:02:57.8]} 3. Nf3 {[%clk 0:02:59.8]} 3... d6 {[%clk 0:02:56]}
4. Bc4 {[%clk 0:02:55.1]} 4... Nf6 {[%clk 0:02:55.3]} 5. Qe2 {[%clk 0:02:53.3]}
5... O-O {[%clk 0:02:54.9]} 6. h3 {[%clk 0:02:50.2]} 6... Nc6 {[%clk 0:02:53]}
7. O-O {[%clk 0:02:48.4]} 7... e5 {[%clk 0:02:52.9]} 8. dxe5 {[%clk 0:02:46.2]}
8... Nxe5 {[%clk 0:02:34.6]} 9. Nxe5 {[%clk 0:02:42.8]} 9... dxe5 {[%clk
0:02:33.4]} 10. Nc3 {[%clk 0:02:41.6]} 10... c6 {[%clk 0:02:32]} 11. Bb3 {[%clk
0:02:34.6]} 11... Qe7 {[%clk 0:02:31.8]} 12. Bg5 {[%clk 0:02:33.6]} 12... h6
{[%clk 0:02:30.9]} 13. Bh4 {[%clk 0:02:33.4]} 13... Kh7 {[%clk 0:02:30.8]} 14.
Nd1 {[%clk 0:02:33.3]} 14... a5 {[%clk 0:02:28.9]} 15. a3 {[%clk 0:02:32.4]}
15... Be6 {[%clk 0:02:28.2]} 16. Bxe6 {[%clk 0:02:31.8]} 16... Qxe6 {[%clk
0:02:29.1]} 17. Bxf6 {[%clk 0:02:31.8]} 17... Bxf6 {[%clk 0:02:29.9]} 18. Ne3
{[%clk 0:02:32.4]} 18... a4 {[%clk 0:02:26.9]} 19. Qc4 {[%clk 0:02:32.4]} 19...
Qxc4 {[%clk 0:02:03.5]} 20. Nxc4 {[%clk 0:02:33.3]} 20... b5 {[%clk 0:02:02.8]}
21. Ne3 {[%clk 0:02:15.7]} 21... Rfd8 {[%clk 0:02:00.9]} 22. Rad1 {[%clk
0:02:14.8]} 22... Be7 {[%clk 0:02:00.5]} 23. g4 {[%clk 0:02:10.6]} 23... Rd4
{[%clk 0:01:58.1]} 24. Rxd4 {[%clk 0:02:07.1]} 24... exd4 {[%clk 0:01:59]} 25.
Ng2 {[%clk 0:02:07.3]} 25... c5 {[%clk 0:01:58]} 26. Rd1 {[%clk 0:02:07.6]}
26... g5 {[%clk 0:01:54.3]} 27. Kf1 {[%clk 0:02:07]} 27... Rd8 {[%clk
0:01:53.7]} 28. Ke2 {[%clk 0:02:05.8]} 28... c4 {[%clk 0:01:53.1]} 29. f4 {[%clk
0:02:04.5]} 29... c3 {[%clk 0:01:21.8]} 30. bxc3 {[%clk 0:01:58.7]} 30... dxc3
{[%clk 0:01:21.2]} 31. Rxd8 {[%clk 0:01:56.9]} 31... Bxd8 {[%clk 0:01:22.1]} 32.
Kd3 {[%clk 0:01:57]} 32... Be7 {[%clk 0:01:22.3]} 33. Kxc3 {[%clk 0:01:45.2]}
33... Bxa3 {[%clk 0:01:21.3]} 34. f5 {[%clk 0:01:42.3]} 34... Kg7 {[%clk
0:01:06.7]} 35. Ne1 {[%clk 0:01:41.5]} 35... Kf6 {[%clk 0:01:05.1]} 36. Nd3
{[%clk 0:01:41]} 36... Bd6 {[%clk 0:01:05.1]} 37. Kd4 {[%clk 0:01:39.6]} 37...
Ke7 {[%clk 0:00:15.3]} 38. e5 {[%clk 0:01:37.6]} 38... Bc7 {[%clk 0:00:14.5]}
39. Kd5 {[%clk 0:01:36.9]} 39... a3 {[%clk 0:00:10.7]} 40. Nb4 {[%clk
0:01:34.3]} 40... Kd7 {[%clk 0:00:08.9]} 41. Na2 {[%clk 0:01:29]} 41... Ba5
{[%clk 0:00:08.1]} 42. Kc5 {[%clk 0:01:27.6]} 42... Bc7 {[%clk 0:00:07.5]} 43.
Kxb5 {[%clk 0:01:24.7]} 43... Bxe5 {[%clk 0:00:07.3]} 44. c4 {[%clk 0:01:25.3]}
44... Bd4 {[%clk 0:00:04.5]} 45. Kb4 {[%clk 0:01:23.3]} 45... Kd6 {[%clk
0:00:04.4]} 46. Kxa3 {[%clk 0:01:21.9]} 46... Ke5 {[%clk 0:00:04.5]} 47. Nc1
{[%clk 0:01:17.9]} 47... Bg1 {[%clk 0:00:02]} 48. Ne2 {[%clk 0:01:14.4]} 48...
Be3 {[%clk 0:00:01.6]} 49. Kb4 {[%clk 0:01:13.4]} 49... Ke4 {[%clk 0:00:02.1]}
50. c5 {[%clk 0:01:13.9]} 50... Kf3 {[%clk 0:00:02.2]} 51. c6 {[%clk 0:01:10.5]}
51... Bb6 {[%clk 0:00:02.2]} 52. Nc3 {[%clk 0:01:05]} 52... Kg3 {[%clk
0:00:02.6]} 53. Nd5 {[%clk 0:01:04.8]} 53... Bd8 {[%clk 0:00:03.3]} 54. Kc5
{[%clk 0:00:44.3]} 54... Kxh3 {[%clk 0:00:03.6]} 55. Nf6 {[%clk 0:00:43.6]}
55... Kh4 {[%clk 0:00:03.1]} 56. Kd6 {[%clk 0:00:42.8]} 56... Kg3 {[%clk
0:00:03.2]} 57. Kd7 {[%clk 0:00:41.8]} 57... Bb6 {[%clk 0:00:03.2]} 58. c7
{[%clk 0:00:41.6]} 58... Bxc7 {[%clk 0:00:03.6]} 59. Kxc7 {[%clk 0:00:42.5]}
59... Kf4 {[%clk 0:00:03.9]} 60. Kd7 {[%clk 0:00:42.8]} 60... h5 {[%clk
0:00:03.2]} 61. gxh5 {[%clk 0:00:41.7]} 61... Kxf5 {[%clk 0:00:03.8]} 62. Ke7
{[%clk 0:00:39.6]} 62... g4 {[%clk 0:00:03.9]} 63. Nxg4 {[%clk 0:00:38.9]} 63...
Kg5 {[%clk 0:00:04.4]} 64. h6 {[%clk 0:00:37.9]} 64... Kg6 {[%clk 0:00:04.9]}
65. Kf8 {[%clk 0:00:36.5]} 65... f5 {[%clk 0:00:02.5]} 66. Kg8 {[%clk
0:00:36.6]} 66... fxg4 {[%clk 0:00:02.3]} 67. h7 {[%clk 0:00:37.1]} 67... g3
{[%clk 0:00:02.8]} 68. h8=Q {[%clk 0:00:38]} 68... Kg5 {[%clk 0:00:03]} 69. Qh3
{[%clk 0:00:37.5]} 1-0